[Event "Philip Hogarty Memorial IM 2019"]
[Site "Stillorgan"]
[Date "2019.01.04"]
[Round "4"]
[White "Wall, Gavin"]
[Black "Greet, Andrew N"]
[Result "0-1"]
[ECO "C02"]
[WhiteElo "2330"]
[BlackElo "2420"]
[Annotator "NA"]
[PlyCount "92"]
[EventDate "2019.01.02"]
[EventType "tourn"]
[EventCountry "IRL"]
[SourceTitle "playchess.com"]
[Source "ChessBase"]
[SourceQuality "1"]
[TimeControl "5400+30"]

1. e4 {[%emt 0:00:00]} e6 {[%emt 0:00:00]} 2. d4 {[%emt 0:00:00]} d5 {[%emt 0:00:00]} 3. e5 {[%emt 0:00:12]} c5 {[%emt 0:00:00]} 4. c3 {[%emt 0:00:03]} Qb6 {[%emt 0:00:00]} 5. Nf3 {[%emt 0:00:04]} Nc6 {[%emt 0:00:00]} 6. a3 {[%emt 0:00:13]} Nh6 {[%emt 0:00:07]} 7. b4 {[%emt 0:01:36]} cxd4 {[%emt 0:00:08]} 8. cxd4 {[%emt 0:00:45]} Nf5 {[%emt 0:00:10]} 9. Bb2 {[%emt 0:00:26]} Bd7 {[%emt 0:00:22]} 10. Be2 {[%emt 0:01:20]} Be7 {[%emt 0:00:43]} 11. O-O {[%emt 0:00:33]} h5 {[%emt 0:01:16]} 12. b5 {[%emt 0:08:01]} Na5 {[%emt 0:00:44]} 13. Nc3 {[%emt 0:00:05]} Rc8 {[%emt 0:03:38]} 14. Na4 {[%emt 0:00:39]} Qd8 {[%emt 0:00:16]} 15. Nd2 {[%emt 0:07:04]} b6 {[%emt 0:08:29]} 16. Rc1 {[%emt 0:06:11]} Bg5 {[%emt 0:02:54]} 17. Rxc8 {[%emt 0:00:11]} Qxc8 {[%emt 0:00:54]} 18. Nf3 {[%emt 0:05:11]} Bh6 {[%emt 0:06:18]} 19. Bc1 {[%emt 0:10:10]} Bxc1 {[%emt 0:06:16]} 20. Qxc1 {[%emt 0:01:34]} Qxc1 {[%emt 0:00:06]} 21. Rxc1 {[%emt 0:00:02]} Kd8 {[%emt 0:09:08]} 22. Rc3 {[%emt 0:12:27]} Nc4 {[%emt 0:00:56]} 23. Bxc4 {[%emt 0:00:56]} dxc4 {[%emt 0:00:07]} 24. Rxc4 {[%emt 0:00:02]} Bxb5 {[%emt 0:00:12]} 25. Rb4 {[%emt 0:00:03]} Bc6 {[%emt 0:01:36]} 26. Nc3 {[%emt 0:03:36]} Bxf3 {[%emt 0:07:43]} 27. gxf3 {[%emt 0:02:29]} Kd7 {[%emt 0:01:25]} 28. d5 {[%emt 0:04:09]} Rc8 {[%emt 0:00:53]} 29. dxe6+ {[%emt 0:02:31]} Kxe6 {[%emt 0:02:54]} 30. Ne4 {[%emt 0:00:09]} Rc2 {[%emt 0:15:18]} 31. f4 {[%emt 0:01:55]} f6 {[%emt 0:06:21]} 32. exf6 {[%emt 0:02:36]} gxf6 {[%emt 0:00:05]} 33. a4 {[%emt 0:00:11]} Nd6 {[%emt 0:03:12]} 34. Nxd6 {[%emt 0:02:55]} Kxd6 {[%emt 0:01:51]} 35. Kg2 {[%emt 0:00:05]} Kc6 {[%emt 0:05:51]} 36. Kg3 {[%emt 0:00:20]} a5 {[%emt 0:00:26]} 37. Re4 {[%emt 0:01:16]} Kd5 {[%emt 0:00:54]} 38. f3 {[%emt 0:00:03]} Rc4 {[%emt 0:07:10]} 39. Kh4 {[%emt 0:00:56]} Rxe4 {[%emt 0:00:44]} 40. fxe4+ {[%emt 0:00:06]} Kxe4 {[%emt 0:00:08]} 41. Kxh5 {[%emt 0:00:03]} b5 {[%emt 0:00:44]} 42. axb5 {[%emt 0:00:34]} Kd5 {[%emt 0:00:06]} 43. b6 {[%emt 0:03:41]} Kc6 {[%emt 0:00:11]} 44. Kg6 {[%emt 0:00:16]} a4 {[%emt 0:00:06]} 45. h4 {[%emt 0:00:06]} a3 {[%emt 0:00:05]} 46. h5 {[%emt 0:00:24]} f5 {[%emt 0:02:56]} 0-1

[Event "Philip Hogarty Memorial IM 2019"]
[Site "Stillorgan"]
[Date "2019.01.04"]
[Round "4"]
[White "Sodoma, Jan"]
[Black "Melaugh, Shane"]
[Result "1-0"]
[ECO "D47"]
[WhiteElo "2324"]
[BlackElo "2169"]
[Annotator "NA"]
[PlyCount "89"]
[EventDate "2019.01.02"]
[EventType "tourn"]
[EventCountry "IRL"]
[SourceTitle "playchess.com"]
[Source "ChessBase"]
[SourceQuality "1"]
[TimeControl "5400+30"]

1. Nf3 {[%emt 0:00:00]} d5 {[%emt 0:06:24]} 2. d4 {[%emt 0:00:00]} Nf6 {[%emt 0:00:19]} 3. c4 {[%emt 0:00:00]} e6 {[%emt 0:00:07]} 4. Nc3 {[%emt 0:00:08]} c6 {[%emt 0:02:28]} 5. e3 {[%emt 0:01:51]} Be7 {[%emt 0:00:59]} 6. Bd3 {[%emt 0:00:39]} Nbd7 {[%emt 0:00:17]} 7. e4 {[%emt 0:01:02]} dxc4 {[%emt 0:03:06]} 8. Bxc4 {[%emt 0:01:01]} b5 {[%emt 0:00:07]} 9. Bd3 {[%emt 0:00:17]} Bb7 {[%emt 0:00:07]} 10. O-O {[%emt 0:01:53]} a6 {[%emt 0:00:04]} 11. e5 {[%emt 0:17:22]} Nd5 {[%emt 0:00:57]} 12. Nxd5 {[%emt 0:00:08]} cxd5 {[%emt 0:03:31]} 13. g3 {[%emt 0:00:20]} O-O {[%emt 0:01:09]} 14. h4 {[%emt 0:01:32]} f6 {[%emt 0:00:34]} 15. exf6 {[%emt 0:00:08]} Nxf6 {[%emt 0:00:51]} 16. Ng5 {[%emt 0:01:16]} Bc8 {[%emt 0:01:12]} 17. Re1 {[%emt 0:10:03]} Qb6 {[%emt 0:07:30]} 18. Bf4 {[%emt 0:02:17]} Bb4 {[%emt 0:02:31]} 19. Re3 {[%emt 0:02:02]} h6 {[%emt 0:04:48]} 20. a3 {[%emt 0:10:10]} e5 {[%emt 0:02:08]} 21. dxe5 {[%emt 0:12:06]} Ng4 {[%emt 0:00:15]} 22. Nh3 {[%emt 0:24:13]} Nxe3 {[%emt 0:02:45]} 23. Bxe3 {[%emt 0:01:52]} Bc5 {[%emt 0:00:08]} 24. Bxc5 {[%emt 0:00:10]} Qxc5 {[%emt 0:00:05]} 25. Nf4 {[%emt 0:00:17]} Bf5 {[%emt 0:01:06]} 26. Bxf5 {[%emt 0:01:55]} Rxf5 {[%emt 0:00:07]} 27. Rc1 {[%emt 0:00:03]} Qa7 {[%emt 0:02:54]} 28. Qxd5+ {[%emt 0:00:19]} Kh8 {[%emt 0:00:14]} 29. Qe4 {[%emt 0:00:38]} Raf8 {[%emt 0:00:43]} 30. h5 {[%emt 0:04:51]} Kg8 {[%emt 0:01:24]} 31. Rc6 {[%emt 0:00:57]} Qd7 {[%emt 0:03:41]} 32. Rd6 {[%emt 0:01:42]} Rxf4 {[%emt 0:00:44]} 33. gxf4 {[%emt 0:02:14]} Qg4+ {[%emt 0:00:05]} 34. Kf1 {[%emt 0:00:13]} Rc8 {[%emt 0:00:15]} 35. Qd5+ {[%emt 0:00:23]} Kh7 {[%emt 0:00:23]} 36. Qd3+ {[%emt 0:00:11]} Kg8 {[%emt 0:00:40]} 37. Rd8+ {[%emt 0:00:12]} Rxd8 {[%emt 0:00:12]} 38. Qxd8+ {[%emt 0:00:02]} Kh7 {[%emt 0:00:09]} 39. Qd3+ {[%emt 0:00:26]} Kg8 {[%emt 0:00:10]} 40. Qd5+ {[%emt 0:00:39]} Kh7 {[%emt 0:02:17]} 41. e6 {[%emt 0:02:28]} Qxf4 {[%emt 0:01:17]} 42. e7 {[%emt 0:00:14]} Qc1+ {[%emt 0:00:22]} 43. Kg2 {[%emt 0:00:09]} Qe1 {[%emt 0:01:12]} 44. Qf5+ {[%emt 0:00:18]} Kg8 {[%emt 0:01:15]} 45. Qf8+ {[%emt 0:00:06]} 1-0

[Event "Philip Hogarty Memorial IM 2019"]
[Site "Stillorgan"]
[Date "2019.01.04"]
[Round "4"]
[White "Brady, Stephen"]
[Black "Delaney, Killian"]
[Result "1/2-1/2"]
[ECO "B17"]
[WhiteElo "2314"]
[BlackElo "2201"]
[Annotator "NA"]
[PlyCount "50"]
[EventDate "2019.01.02"]
[EventType "tourn"]
[EventCountry "IRL"]
[SourceTitle "playchess.com"]
[Source "ChessBase"]
[SourceQuality "1"]
[TimeControl "5400+30"]

1. e4 {[%emt 0:03:35]} c6 {[%emt 0:00:00]} 2. d4 {[%emt 0:00:29]} d5 {[%emt 0:00:00]} 3. Nd2 {[%emt 0:00:11]} dxe4 {[%emt 0:00:05]} 4. Nxe4 {[%emt 0:00:16]} Nd7 {[%emt 0:02:09]} 5. Ng5 {[%emt 0:01:40]} Ngf6 {[%emt 0:00:10]} 6. Bd3 {[%emt 0:01:51]} e6 {[%emt 0:04:25]} 7. N1f3 {[%emt 0:00:29]} Bd6 {[%emt 0:00:08]} 8. Qe2 {[%emt 0:00:32]} h6 {[%emt 0:00:09]} 9. Ne4 {[%emt 0:00:12]} Nxe4 {[%emt 0:00:07]} 10. Qxe4 {[%emt 0:00:06]} Nf6 {[%emt 0:00:09]} 11. Qh4 {[%emt 0:02:30]} Rg8 {[%emt 0:01:04]} 12. Ne5 {[%emt 0:01:10]} Bxe5 {[%emt 0:00:10]} 13. dxe5 {[%emt 0:00:05]} Qa5+ {[%emt 0:00:04]} 14. c3 {[%emt 0:00:09]} Qxe5+ {[%emt 0:00:07]} 15. Be3 {[%emt 0:00:08]} Nd5 {[%emt 0:00:55]} 16. O-O-O {[%emt 0:00:13]} Nxe3 {[%emt 0:01:29]} 17. fxe3 {[%emt 0:00:07]} Bd7 {[%emt 0:08:00]} 18. Rhf1 {[%emt 0:02:59]} g5 {[%emt 0:14:17]} 19. Qf2 {[%emt 0:26:45]} Rf8 {[%emt 0:35:27]} 20. Qf6 {[%emt 0:17:31]} Qxf6 {[%emt 0:00:56]} 21. Rxf6 {[%emt 0:00:13]} Ke7 {[%emt 0:05:15]} 22. Rxh6 {[%emt 0:00:38]} Rh8 {[%emt 0:00:16]} 23. Rxh8 {[%emt 0:00:21]} Rxh8 {[%emt 0:00:05]} 24. h3 {[%emt 0:00:05]} e5 {[%emt 0:02:06]} 25. Rf1 {[%emt 0:07:22]} g4 {[%emt 0:03:59]} 1/2-1/2

[Event "Philip Hogarty Memorial IM 2019"]
[Site "Stillorgan"]
[Date "2019.01.04"]
[Round "4"]
[White "De Verdier, Michael"]
[Black "O`Gorman, Tom"]
[Result "1/2-1/2"]
[ECO "A36"]
[WhiteElo "2277"]
[BlackElo "2153"]
[Annotator "NA"]
[PlyCount "49"]
[EventDate "2019.01.02"]
[EventType "tourn"]
[EventCountry "IRL"]
[SourceTitle "playchess.com"]
[Source "ChessBase"]
[SourceQuality "1"]
[TimeControl "5400+30"]

1. c4 {[%emt 0:00:00]} c5 {[%emt 0:00:00]} 2. g3 {[%emt 0:00:00]} g6 {[%emt 0:00:00]} 3. Bg2 {[%emt 0:00:00]} Bg7 {[%emt 0:00:00]} 4. Nc3 {[%emt 0:00:00]} Nc6 {[%emt 0:00:00]} 5. a3 {[%emt 0:00:00]} d6 {[%emt 0:00:04]} 6. Rb1 {[%emt 0:00:00]} a5 {[%emt 0:00:06]} 7. d3 {[%emt 0:00:35]} e5 {[%emt 0:00:06]} 8. e3 {[%emt 0:00:16]} Nge7 {[%emt 0:00:07]} 9. Nge2 {[%emt 0:00:31]} O-O {[%emt 0:00:19]} 10. O-O {[%emt 0:00:08]} Be6 {[%emt 0:00:10]} 11. Nd5 {[%emt 0:01:38]} Bxd5 {[%emt 0:16:33]} 12. cxd5 {[%emt 0:01:42]} Nb8 {[%emt 0:03:04]} 13. b4 {[%emt 0:09:48]} axb4 {[%emt 0:03:17]} 14. axb4 {[%emt 0:00:09]} b6 {[%emt 0:00:06]} 15. Qb3 {[%emt 0:15:21]} Nd7 {[%emt 0:02:25]} 16. Bd2 {[%emt 0:06:30]} Qc7 {[%emt 0:23:34]} 17. Rfc1 {[%emt 0:02:19]} Rfb8 {[%emt 0:00:38]} 18. d4 {[%emt 0:05:49]} Qa7 {[%emt 0:03:52]} 19. Nc3 {[%emt 0:06:10]} cxd4 {[%emt 0:01:38]} 20. exd4 {[%emt 0:05:10]} b5 {[%emt 0:00:36]} 21. Ne4 {[%emt 0:05:30]} Nf5 {[%emt 0:01:57]} 22. dxe5 {[%emt 0:04:21]} Nxe5 {[%emt 0:01:49]} 23. Bc3 {[%emt 0:01:38]} Qb6 {[%emt 0:10:27]} 24. Ra1 {[%emt 0:02:52]} Rxa1 {[%emt 0:02:17]} 25. Bxa1 {[%emt 0:01:35]} 1/2-1/2

[Event "Philip Hogarty Memorial IM 2019"]
[Site "Stillorgan"]
[Date "2019.01.04"]
[Round "4"]
[White "Nilssen, Ellen Fredericia"]
[Black "Li, Henry"]
[Result "0-1"]
[ECO "E75"]
[WhiteElo "2181"]
[BlackElo "2193"]
[Annotator "NA"]
[PlyCount "86"]
[EventDate "2019.01.02"]
[EventType "tourn"]
[EventCountry "IRL"]
[SourceTitle "playchess.com"]
[Source "ChessBase"]
[SourceQuality "1"]
[TimeControl "5400+30"]

1. d4 {[%emt 0:00:00]} Nf6 {[%emt 0:00:00]} 2. c4 {[%emt 0:00:00]} g6 {[%emt 0:00:00]} 3. Nc3 {[%emt 0:00:00]} Bg7 {[%emt 0:00:06]} 4. e4 {[%emt 0:00:04]} O-O {[%emt 0:00:10]} 5. Be2 {[%emt 0:00:07]} d6 {[%emt 0:00:06]} 6. Bg5 {[%emt 0:00:14]} c5 {[%emt 0:00:16]} 7. d5 {[%emt 0:03:37]} e6 {[%emt 0:00:29]} 8. Qd2 {[%emt 0:03:57]} exd5 {[%emt 0:01:05]} 9. exd5 {[%emt 0:03:00]} Qb6 {[%emt 0:01:04]} 10. Nf3 {[%emt 0:03:23]} Bf5 {[%emt 0:00:12]} 11. O-O {[%emt 0:08:36]} Ne4 {[%emt 0:00:04]} 12. Nxe4 {[%emt 0:02:26]} Bxe4 {[%emt 0:01:43]} 13. Bh6 {[%emt 0:06:35]} Bxh6 {[%emt 0:06:58]} 14. Qxh6 {[%emt 0:00:10]} Bxf3 {[%emt 0:00:07]} 15. Bxf3 {[%emt 0:00:57]} Qxb2 {[%emt 0:14:00]} 16. Qf4 {[%emt 0:09:28]} Qb6 {[%emt 0:09:42]} 17. h4 {[%emt 0:04:48]} Nd7 {[%emt 0:03:39]} 18. h5 {[%emt 0:12:43]} Rae8 {[%emt 0:02:15]} 19. g3 {[%emt 0:07:07]} Re5 {[%emt 0:01:49]} 20. Kg2 {[%emt 0:08:43]} Qd8 {[%emt 0:08:27]} 21. Rab1 {[%emt 0:04:16]} b6 {[%emt 0:01:05]} 22. Rh1 {[%emt 0:00:31]} Qg5 {[%emt 0:02:43]} 23. Qxg5 {[%emt 0:03:35]} Rxg5 {[%emt 0:00:10]} 24. a4 {[%emt 0:00:07]} Re5 {[%emt 0:16:09]} 25. a5 {[%emt 0:02:09]} bxa5 {[%emt 0:10:09]} 26. hxg6 {[%emt 0:00:58]} hxg6 {[%emt 0:00:59]} 27. Ra1 {[%emt 0:00:34]} Nb6 {[%emt 0:00:32]} 28. Rxa5 {[%emt 0:00:06]} Nxc4 {[%emt 0:00:16]} 29. Rxa7 {[%emt 0:00:06]} Rfe8 {[%emt 0:07:08]} 30. Rd1 {[%emt 0:02:30]} Re1 {[%emt 0:01:24]} 31. Rxe1 {[%emt 0:01:46]} Rxe1 {[%emt 0:00:02]} 32. Ra4 {[%emt 0:00:11]} Nb6 {[%emt 0:01:15]} 33. Ra6 {[%emt 0:00:43]} Rb1 {[%emt 0:00:06]} 34. Be4 {[%emt 0:00:12]} Rb4 {[%emt 0:00:26]} 35. Bf3 {[%emt 0:03:12]} Kg7 {[%emt 0:00:50]} 36. Be2 {[%emt 0:02:30]} g5 {[%emt 0:01:59]} 37. Bh5 {[%emt 0:00:31]} Kf6 {[%emt 0:03:06]} 38. f4 {[%emt 0:00:39]} gxf4 {[%emt 0:00:30]} 39. gxf4 {[%emt 0:00:08]} Kf5 {[%emt 0:00:55]} 40. Kg3 {[%emt 0:01:40]} Rb3+ {[%emt 0:00:36]} 41. Bf3 {[%emt 0:00:55]} Nc4 {[%emt 0:01:07]} 42. Ra2 {[%emt 0:00:23]} Rd3 {[%emt 0:01:04]} 43. Rh2 {[%emt 0:02:26]} Nd2 {[%emt 0:01:06]} 0-1

[Event "Philip Hogarty Memorial IM 2019"]
[Site "Stillorgan"]
[Date "2019.01.05"]
[Round "5"]
[White "Greet, Andrew N"]
[Black "Nilssen, Ellen Fredericia"]
[Result "1-0"]
[ECO "A48"]
[WhiteElo "2420"]
[BlackElo "2181"]
[Annotator "NA"]
[PlyCount "75"]
[EventDate "2019.01.02"]
[EventType "tourn"]
[EventCountry "IRL"]
[SourceTitle "playchess.com"]
[Source "ChessBase"]
[SourceQuality "1"]
[TimeControl "5400+30"]

1. d4 {[%emt 0:00:00]} Nf6 {[%emt 0:00:00]} 2. Nf3 {[%emt 0:00:00]} g6 {[%emt 0:00:00]} 3. Nbd2 {[%emt 0:00:00]} c5 {[%emt 0:00:08]} 4. c3 {[%emt 0:04:06]} cxd4 {[%emt 0:00:20]} 5. cxd4 {[%emt 0:00:05]} d5 {[%emt 0:00:21]} 6. e3 {[%emt 0:00:24]} Bg7 {[%emt 0:02:09]} 7. Bd3 {[%emt 0:00:42]} O-O {[%emt 0:00:10]} 8. O-O {[%emt 0:00:41]} Nc6 {[%emt 0:00:12]} 9. a3 {[%emt 0:00:29]} Nd7 {[%emt 0:11:06]} 10. Be2 {[%emt 0:04:00]} e5 {[%emt 0:03:10]} 11. dxe5 {[%emt 0:01:43]} Ndxe5 {[%emt 0:00:11]} 12. Nxe5 {[%emt 0:00:06]} Nxe5 {[%emt 0:00:34]} 13. Nf3 {[%emt 0:08:09]} Nxf3+ {[%emt 0:00:16]} 14. Bxf3 {[%emt 0:00:06]} d4 {[%emt 0:00:03]} 15. exd4 {[%emt 0:02:04]} Qxd4 {[%emt 0:02:37]} 16. Qxd4 {[%emt 0:00:31]} Bf6 {[%emt 1:16:43]} 17. Qe5 Bxe5 {[%emt 0:00:00]} 18. Rd1 {[%emt 0:02:49]} Bg7 {[%emt 0:00:00]} 19. a4 {[%emt 0:01:20]} Bf5 {[%emt 0:00:00]} 20. g4 {[%emt 0:02:55]} Be6 {[%emt 0:00:00]} 21. Be3 {[%emt 0:06:20]} a5 {[%emt 0:00:00]} 22. h3 {[%emt 0:09:25]} Rfd8 {[%emt 0:00:00]} 23. Bxb7 {[%emt 0:04:47]} Bb3 {[%emt 0:00:00]} 24. Rxd8+ {[%emt 0:08:25]} Rxd8 {[%emt 0:00:00]} 25. Bc6 {[%emt 0:00:27]} Bd4 {[%emt 0:00:00]} 26. Re1 {[%emt 0:05:03]} Kg7 {[%emt 0:00:00]} 27. Re2 {[%emt 0:01:56]} Be5 {[%emt 0:00:00]} 28. Bb6 {[%emt 0:05:02]} Rd1+ {[%emt 0:00:00]} 29. Kg2 {[%emt 0:00:06]} Bd5+ {[%emt 0:00:00]} 30. Bxd5 {[%emt 0:00:07]} Rxd5 {[%emt 0:00:00]} 31. Rxe5 {[%emt 0:04:13]} Rxe5 {[%emt 0:00:00]} 32. Bd4 {[%emt 0:00:05]} f6 {[%emt 0:00:00]} 33. Bxe5 {[%emt 0:00:05]} fxe5 {[%emt 0:00:00]} 34. Kf3 {[%emt 0:00:19]} Kf7 {[%emt 0:00:00]} 35. Ke4 {[%emt 0:00:29]} Ke6 {[%emt 0:00:00]} 36. g5 {[%emt 0:02:35]} Kd6 {[%emt 0:00:00]} 37. Kd3 {[%emt 0:00:46]} Kd5 {[%emt 0:00:00]} 38. f3 {[%emt 0:00:07]} 1-0

[Event "Philip Hogarty Memorial IM 2019"]
[Site "Stillorgan"]
[Date "2019.01.05"]
[Round "5"]
[White "Delaney, Killian"]
[Black "De Verdier, Michael"]
[Result "1/2-1/2"]
[ECO "C10"]
[WhiteElo "2201"]
[BlackElo "2277"]
[Annotator "NA"]
[PlyCount "26"]
[EventDate "2019.01.02"]
[EventType "tourn"]
[EventCountry "IRL"]
[SourceTitle "playchess.com"]
[Source "ChessBase"]
[SourceQuality "1"]
[TimeControl "5400+30"]

1. e4 {[%emt 0:00:00]} e6 {[%emt 0:01:16]} 2. d4 {[%emt 0:00:00]} d5 {[%emt 0:00:18]} 3. Nd2 {[%emt 0:00:00]} dxe4 {[%emt 0:00:44]} 4. Nxe4 {[%emt 0:00:04]} Nd7 {[%emt 0:00:03]} 5. Bd3 {[%emt 0:02:01]} Ngf6 {[%emt 0:01:11]} 6. Nf3 {[%emt 0:01:02]} c5 {[%emt 0:00:06]} 7. Nxf6+ {[%emt 0:00:22]} Nxf6 {[%emt 0:00:28]} 8. dxc5 {[%emt 0:00:26]} Bxc5 {[%emt 0:01:06]} 9. Qe2 {[%emt 0:03:31]} O-O {[%emt 0:05:10]} 10. Bg5 {[%emt 0:01:04]} Qa5+ {[%emt 0:02:46]} 11. c3 {[%emt 0:02:48]} Nd5 {[%emt 0:00:43]} 12. O-O {[%emt 0:14:02]} Qc7 {[%emt 0:02:01]} 13. Rfd1 {[%emt 0:09:11]} Nf4 {[%emt 0:19:32]} 1/2-1/2

[Event "Philip Hogarty Memorial IM 2019"]
[Site "Stillorgan"]
[Date "2019.01.05"]
[Round "5"]
[White "Li, Henry"]
[Black "Brady, Stephen"]
[Result "1-0"]
[ECO "B09"]
[WhiteElo "2193"]
[BlackElo "2314"]
[Annotator "NA"]
[PlyCount "67"]
[EventDate "2019.01.02"]
[EventType "tourn"]
[EventCountry "IRL"]
[SourceTitle "playchess.com"]
[Source "ChessBase"]
[SourceQuality "1"]
[TimeControl "5400+30"]

1. e4 {[%emt 0:00:00]} d6 {[%emt 0:00:49]} 2. d4 {[%emt 0:00:17]} Nf6 {[%emt 0:00:06]} 3. Nc3 {[%emt 0:00:04]} g6 {[%emt 0:00:06]} 4. f4 {[%emt 0:00:18]} Bg7 {[%emt 0:00:08]} 5. Nf3 {[%emt 0:00:06]} O-O {[%emt 0:00:10]} 6. e5 {[%emt 0:00:03]} dxe5 {[%emt 0:00:30]} 7. fxe5 {[%emt 0:00:04]} Nd5 {[%emt 0:00:09]} 8. Bc4 {[%emt 0:00:04]} Nb6 {[%emt 0:00:13]} 9. Bb3 {[%emt 0:02:38]} Nc6 {[%emt 0:00:20]} 10. O-O {[%emt 0:05:23]} Na5 {[%emt 0:00:48]} 11. Qe2 {[%emt 0:06:14]} Bg4 {[%emt 0:06:06]} 12. Be3 {[%emt 0:01:34]} Nxb3 {[%emt 0:00:58]} 13. axb3 {[%emt 0:00:20]} f6 {[%emt 0:00:43]} 14. exf6 {[%emt 0:06:13]} exf6 {[%emt 0:01:06]} 15. h3 {[%emt 0:02:54]} Bxf3 {[%emt 0:00:28]} 16. Qxf3 {[%emt 0:00:33]} Re8 {[%emt 0:03:03]} 17. Bf2 {[%emt 0:08:58]} c6 {[%emt 0:02:42]} 18. Rfe1 {[%emt 0:04:04]} Rxe1+ {[%emt 0:04:45]} 19. Rxe1 {[%emt 0:00:29]} f5 {[%emt 0:02:50]} 20. d5 {[%emt 0:13:21]} Nxd5 {[%emt 0:04:33]} 21. Rd1 {[%emt 0:01:23]} Qc7 {[%emt 0:13:07]} 22. Nxd5 {[%emt 0:01:33]} cxd5 {[%emt 0:00:13]} 23. Qxd5+ {[%emt 0:00:36]} Kh8 {[%emt 0:00:10]} 24. Qd7 {[%emt 0:25:14]} Qxc2 {[%emt 0:08:33]} 25. Re1 {[%emt 0:02:23]} Qc6 {[%emt 0:07:29]} 26. Qf7 {[%emt 0:03:16]} Rf8 {[%emt 0:02:28]} 27. Qe7 {[%emt 0:00:09]} a5 {[%emt 0:05:31]} 28. Kh1 {[%emt 0:03:48]} Qd5 {[%emt 0:02:06]} 29. Re6 {[%emt 0:03:28]} Qd2 {[%emt 0:07:13]} 30. Bg1 {[%emt 0:03:09]} f4 {[%emt 0:02:39]} 31. Rd6 {[%emt 0:01:28]} Qc1 {[%emt 0:02:34]} 32. Rd7 {[%emt 0:00:30]} Rg8 {[%emt 0:00:06]} 33. Kh2 {[%emt 0:01:05]} f3 {[%emt 0:02:08]} 34. Qxg7+ {[%emt 0:00:30]} 1-0

[Event "Philip Hogarty Memorial IM 2019"]
[Site "Stillorgan"]
[Date "2019.01.05"]
[Round "5"]
[White "Melaugh, Shane"]
[Black "Wall, Gavin"]
[Result "0-1"]
[ECO "C41"]
[WhiteElo "2169"]
[BlackElo "2330"]
[Annotator "NA"]
[PlyCount "46"]
[EventDate "2019.01.02"]
[EventType "tourn"]
[EventCountry "IRL"]
[SourceTitle "playchess.com"]
[Source "ChessBase"]
[SourceQuality "1"]
[TimeControl "5400+30"]

1. Nf3 {[%emt 0:00:00]} d6 {[%emt 0:00:00]} 2. e4 {[%emt 0:00:57]} e5 {[%emt 0:00:00]} 3. d4 {[%emt 0:00:07]} exd4 {[%emt 0:00:00]} 4. Nxd4 {[%emt 0:00:05]} Nf6 {[%emt 0:00:00]} 5. Nc3 {[%emt 0:00:05]} Be7 {[%emt 0:00:00]} 6. Be2 {[%emt 0:00:12]} O-O {[%emt 0:00:03]} 7. Be3 {[%emt 0:00:11]} Re8 {[%emt 0:01:04]} 8. h3 {[%emt 0:01:37]} Bf8 {[%emt 0:06:57]} 9. Qd3 {[%emt 0:04:18]} Na6 {[%emt 0:01:50]} 10. f3 {[%emt 0:00:18]} c5 {[%emt 0:02:06]} 11. Ndb5 {[%emt 0:01:12]} d5 {[%emt 0:00:39]} 12. exd5 {[%emt 0:06:45]} Nb4 {[%emt 0:00:10]} 13. Qd2 {[%emt 0:00:09]} Rxe3 {[%emt 0:00:12]} 14. a3 {[%emt 0:01:05]} Nbxd5 {[%emt 0:01:41]} 15. Nxd5 {[%emt 0:00:16]} Nxd5 {[%emt 0:00:14]} 16. O-O-O {[%emt 0:00:11]} Qe7 {[%emt 0:00:17]} 17. Bd3 {[%emt 0:04:10]} a6 {[%emt 0:01:02]} 18. Be4 {[%emt 0:01:53]} axb5 {[%emt 0:01:06]} 19. Qxd5 {[%emt 0:00:14]} b4 {[%emt 0:01:03]} 20. Kd2 {[%emt 0:00:48]} Be6 {[%emt 0:06:39]} 21. Qxb7 {[%emt 0:01:03]} Qg5 {[%emt 0:00:04]} 22. h4 {[%emt 0:03:26]} Rd8+ {[%emt 0:00:07]} 23. Kc1 {[%emt 0:00:09]} Re1+ {[%emt 1:16:16]} 0-1